bitfinex/quotes_SOLUSD_20250829
["timestamp","ask_amount","ask_price","bid_price","bid_amount"]
[1756432428285,6.53753135,214.35,214.31,0.71]
[1756432428860,6.53753135,214.34,214.3,0.03]
[1756432429060,6.53753135,214.34,214.3,0.74]
[1756432429883,6.53753135,214.34,214.31,0.71]
[1756432430780,6.53753135,214.34,214.3,4.69614531]
[1756432431284,6.53753135,214.33,214.3,0.03]
[1756432432166,4.66509903,214.36,214.3,4.6963142]
[1756432432364,6.53753135,214.34,214.3,0.03]
[1756432432767,43.20486047,214.37,214.3,0.74]
[1756432432971,6.53753135,214.35,214.3,0.74]
[1756432433368,3.44590643,214.34,214.3,0.74]
[1756432433567,6.53753135,214.35,214.3,0.74]
[1756432433788,6.59753135,214.34,214.3,0.74]
[1756432434981,3.44990185,214.33,214.3,0.03]
[1756432435196,0.06,214.34,214.32,6.82185449]
[1756432435356,0.06,214.34,214.33,7.24753135]
[1756432435782,0.06,214.34,214.33,11.91323377]
[1756432436165,0.06,214.37,214.36,26.28432314]
[1756432436465,0.06,214.37,214.36,26.0]
[1756432436795,0.06,214.37,214.36,33.24753135]
[1756432438171,0.06,214.37,214.36,38.19690393]
[1756432441684,0.06,214.37,214.36,52.19690393]
[1756432443669,3.53637723,214.37,214.36,52.19690393]
[1756432444089,0.06,214.37,214.36,52.19690393]
[1756432444474,3.53774571,214.37,214.36,52.19690393]
[1756432444872,3.53774571,214.37,214.36,37.91258079]
[1756432445484,3.53774571,214.37,214.31,5.34613783]
[1756432445694,3.47774571,214.36,214.33,4.66570242]
[1756432445899,10.01527706,214.35,214.32,4.66588749]
[1756432446178,6.61275,214.34,214.32,4.66588749]
[1756432446379,6.61275,214.33,214.32,4.66588749]
[1756432446891,3.47774571,214.33,214.32,4.66588749]
[1756432447211,3.47774571,214.33,214.3,0.03]
[1756432447212,10.01527706,214.33,214.3,0.03]
[1756432447374,13.15059304,214.32,214.3,4.69630479]
[1756432447699,6.61306169,214.31,214.3,11.23383614]
[1756432447873,0.06,214.37,214.3,11.23383614]
[1756432448192,3.48359516,214.36,214.33,6.53753135]
[1756432448381,3.48359516,214.35,214.32,6.53753135]
[1756432448570,3.48359516,214.34,214.32,7.21753135]
[1756432448772,3.48359516,214.33,214.32,7.21753135]
[1756432449301,3.13509028,214.36,214.32,7.21753135]
[1756432449493,3.48390216,214.35,214.32,7.21753135]
[1756432449675,3.48390216,214.34,214.32,7.21753135]
[1756432449872,3.19509028,214.37,214.33,11.20323377]
[1756432450066,3.48388965,214.36,214.33,11.20323377]
[1756432450673,3.48388965,214.36,214.34,7.21753135]
[1756432451175,3.48388965,214.36,214.34,0.68]
[1756432451407,3.48388965,214.36,214.33,11.20323377]
[1756432451604,3.48388965,214.36,214.34,7.21753135]
[1756432451792,3.48388965,214.36,214.35,4.66526708]
[1756432452819,3.48388965,214.36,214.35,5.34526708]
[1756432452991,0.06,214.37,214.35,11.88279843]
[1756432453186,0.06,214.37,214.36,33.21753135]
[1756432453906,0.06,214.37,214.36,37.88258079]
[1756432455185,0.06,214.37,214.36,51.88258079]
[1756432456249,0.06,214.37,214.36,4.66504944]
[1756432457711,0.06,214.37,214.36,5.34504944]
[1756432458296,0.06,214.37,214.36,7.21753135]
[1756432459023,0.06,214.39,214.38,26.0]
[1756432459326,0.06,214.39,214.38,78.50432314]
[1756432459614,0.06,214.39,214.38,47.50185449]
[1756432459823,0.06,214.39,214.38,85.72185449]
[1756432460217,0.06,214.39,214.38,52.16646872]
[1756432460415,0.06,214.39,214.38,90.38646872]
[1756432460625,0.06,214.39,214.38,52.16646872]
[1756432460796,0.06,214.39,214.38,90.38646872]
[1756432461301,0.06,214.39,214.38,18.66461423]
[1756432461505,0.06,214.39,214.38,4.66461423]
[1756432463515,10.0826609,214.39,214.36,38.2]
[1756432463692,6.59753135,214.39,214.36,38.2]
[1756432464017,0.06,214.39,214.36,38.2]
[1756432464716,6.53753135,214.38,214.35,4.66525831]
[1756432465022,0.12,214.39,214.33,4.66570242]
[1756432465312,6.53753135,214.36,214.32,0.03]
[1756432465515,3.48521831,214.38,214.32,0.03]
[1756432465516,6.53753135,214.34,214.32,0.03]
[1756432465731,6.53753135,214.35,214.32,0.03]
[1756432466809,11.20284962,214.35,214.32,0.03]
[1756432467201,6.53753135,214.35,214.32,0.03]
[1756432468321,11.20281188,214.35,214.32,0.03]
[1756432468521,0.06,214.39,214.32,0.03]
[1756432468522,11.20323377,214.33,214.32,0.03]
[1756432468724,14.6898238,214.33,214.32,0.03]
[1756432468904,13.22178044,214.33,214.32,0.03]
[1756432469225,10.02412138,214.33,214.32,0.03]
[1756432470522,3.97960501,214.39,214.32,11.90345146]
[1756432470523,6.53753135,214.38,214.32,11.90345146]
[1756432470819,6.53753135,214.36,214.32,0.03]
[1756432471025,3.48651083,214.35,214.32,0.03]
[1756432471402,6.59753135,214.37,214.32,4.69591777]
[1756432471595,3.48666377,214.36,214.32,0.03]
[1756432471795,3.48666377,214.36,214.32,0.7]
[1756432472196,13.16166724,214.36,214.32,0.03]
[1756432472428,3.48666377,214.35,214.32,0.03]
[1756432472727,3.48666377,214.35,214.32,0.7]
[1756432472902,6.59753135,214.37,214.32,0.7]
[1756432473102,6.62465553,214.36,214.32,0.7]
[1756432473315,3.4870783,214.35,214.32,0.03]
[1756432473526,6.62465553,214.35,214.32,0.03]
[1756432473741,3.4870783,214.34,214.32,0.03]
[1756432474233,11.26252333,214.37,214.32,0.03]
[1756432474533,13.1631938,214.36,214.32,0.03]
[1756432474832,6.53753135,214.36,214.32,0.03]
[1756432475030,3.48767857,214.35,214.32,0.03]
[1756432475412,6.53753135,214.34,214.32,0.03]
[1756432475621,6.62593367,214.35,214.32,0.03]
[1756432475622,10.02520992,214.33,214.32,0.03]
[1756432475812,13.16387615,214.33,214.32,0.03]
[1756432476828,17.88957857,214.33,214.32,0.03]
[1756432477513,17.88957857,214.33,214.3,0.03]
[1756432477514,13.59559401,214.32,214.3,0.03]
[1756432477719,39.16387615,214.31,214.3,0.03]
[1756432477925,39.22387615,214.31,214.3,0.03]
[1756432478321,43.14348116,214.31,214.3,0.03]
[1756432478507,39.22387615,214.31,214.3,0.03]
[1756432479317,57.48560799,214.31,214.3,0.03]
[1756432479517,57.76993113,214.31,214.3,0.03]
[1756432479719,37.35248263,214.31,214.3,0.03]
[1756432479916,43.89001398,214.31,214.3,0.03]
[1756432480147,57.48560799,214.31,214.3,0.03]
[1756432481016,57.76993113,214.31,214.3,0.03]
[1756432481222,57.76336506,214.31,214.3,0.03]
[1756432482119,57.47904192,214.31,214.3,0.03]
[1756432484231,57.76336506,214.31,214.3,0.03]
[1756432484616,54.28225256,214.31,214.3,0.03]
[1756432484826,57.75889824,214.31,214.3,0.03]
[1756432485634,95.5945751,214.31,214.3,0.03]
[1756432486824,95.5345751,214.31,214.3,0.03]
[1756432487331,79.65730234,214.31,214.3,0.03]
[1756432491025,93.25289635,214.31,214.3,0.03]
[1756432491856,18.13576975,214.3,214.29,0.03]
[1756432492031,24.81108166,214.3,214.29,0.03]
[1756432492536,39.59559401,214.28,214.27,0.03]
[1756432492755,88.58675852,214.28,214.27,0.03]
[1756432492949,130.98108166,214.28,214.27,1e-08]
[1756432493126,13.59559401,214.2,214.14,0.67]
[1756432493328,4.2558526,214.15,214.09,8.92673981]
[1756432493554,4.2558526,214.15,214.09,4.2558526]
[1756432493763,4.2558526,214.15,214.11,0.67]
[1756432494452,4.2558526,214.13,214.12,0.67]
[1756432495135,8.92597982,214.13,214.1,0.1]
[1756432495338,4.67012722,214.13,214.12,0.67]
[1756432495743,4.67012722,214.13,214.1,0.77]
[1756432495953,4.67012722,214.13,214.11,0.67]
[1756432496266,4.67012722,214.13,214.12,0.67]
[1756432496466,11.22714512,214.13,214.12,0.67]
[1756432496630,11.22714512,214.13,214.1,0.1]
[1756432496832,6.5570179,214.11,214.1,0.77]
[1756432497033,6.5570179,214.11,214.1,0.1]
[1756432497655,6.5570179,214.11,214.1,0.77]
[1756432498750,11.22751437,214.11,214.1,0.1]
[1756432501865,14.68038701,214.11,214.1,0.1]
[1756432502039,17.78782494,214.11,214.1,0.1]
[1756432502238,14.68038701,214.11,214.1,0.1]
[1756432502461,17.78586085,214.11,214.1,0.1]
[1756432502758,31.38154066,214.11,214.1,0.1]
[1756432503333,31.44154066,214.11,214.1,0.1]
[1756432503955,31.38154066,214.11,214.1,0.1]
[1756432504352,31.7258638,214.11,214.1,0.1]
[1756432504664,31.72022515,214.11,214.1,0.1]
[1756432506064,31.71810678,214.11,214.1,0.1]
[1756432506678,31.65810678,214.11,214.1,0.1]
[1756432507864,31.65717947,214.11,214.1,0.1]
[1756432510461,31.37285633,214.11,214.1,0.1]
[1756432510662,69.51285633,214.11,214.1,0.1]
[1756432513068,31.37285633,214.11,214.1,0.1]
[1756432513364,97.38626033,214.11,214.1,0.1]
[1756432513571,95.51285633,214.11,214.1,0.76]
[1756432515043,95.51743467,214.11,214.1,0.1]
[1756432515468,93.22395136,214.11,214.1,0.1]
[1756432517776,93.5082745,214.11,214.1,0.1]
[1756432518079,97.77180909,214.11,214.1,0.1]
[1756432518377,99.64530109,214.11,214.1,0.1]
[1756432520278,93.22395136,214.11,214.1,0.76]
[1756432520456,79.62835735,214.11,214.1,0.76]
[1756432520654,79.62835735,214.11,214.1,0.1]
[1756432520855,79.60835735,214.11,214.1,0.1]
[1756432521558,79.6176547,214.11,214.1,0.1]
[1756432521756,68.37122366,214.11,214.1,0.1]
[1756432521958,70.5290398,214.11,214.1,0.1]
[1756432522161,70.52991516,214.11,214.1,0.1]
[1756432522388,13.59559401,214.09,214.08,1e-08]
[1756432522689,39.59559401,214.06,214.05,0.03]
[1756432522858,88.55080093,214.06,214.05,0.03]
[1756432523758,93.22475893,214.06,214.05,0.03]
[1756432524574,97.89634633,214.06,214.05,0.03]
[1756432524881,97.89634633,214.06,213.91,14.0]
[1756432524882,0.28432314,214.05,213.99,0.66]
[1756432525066,4.26353459,214.0,213.99,0.66]
[1756432525273,45.84247395,214.0,213.99,0.66]
[1756432525588,48.95520692,214.0,213.99,0.66]
[1756432525885,48.95518774,214.0,213.99,0.66]
[1756432526085,48.95518774,214.0,213.97,0.66]
[1756432526305,4.26353459,213.98,213.97,0.66]
[1756432526492,45.84245477,213.98,213.88,4.26353459]
[1756432526669,4.26353459,213.95,213.89,4.67530038]
[1756432526863,38.12,213.94,213.89,4.67530038]
[1756432527064,38.12,213.94,213.9,0.66]
[1756432527590,4.26353459,213.97,213.9,4.92353459]
[1756432527897,38.12,213.96,213.91,4.92353459]
[1756432528075,38.12,213.97,213.93,4.26353459]
[1756432528278,38.12,213.96,213.94,0.66]
[1756432529586,4.26353459,213.95,213.94,0.66]
[1756432529782,4.26353459,213.95,213.9,4.67486604]
[1756432529987,38.12,213.94,213.9,4.67486604]
[1756432530387,38.12,213.94,213.91,0.67]
[1756432531504,42.38353459,213.94,213.92,0.67]
[1756432531696,4.26353459,213.93,213.87,34.93912923]
[1756432531899,38.12,213.92,213.88,4.26353459]
[1756432532095,38.12,213.92,213.87,8.93912923]
[1756432532406,38.12,213.92,213.88,0.67]
[1756432532583,42.38353459,213.92,213.88,0.67]
[1756432532785,4.26353459,213.9,213.89,0.67]
[1756432533000,42.38353459,213.9,213.84,4.26353459]
[1756432533297,42.38353459,213.9,213.84,8.93988811]
[1756432533600,42.38353459,213.9,213.85,0.67]
[1756432533791,38.12,213.9,213.85,4.93353459]
[1756432534102,38.12,213.9,213.86,0.67]
[1756432534699,38.12,213.9,213.86,5.34585438]
[1756432534906,38.12,213.9,213.87,0.67]
[1756432535203,42.38353459,213.9,213.87,0.67]
[1756432535405,4.26353459,213.89,213.86,4.67585438]
[1756432535602,4.26353459,213.89,213.88,0.67]
[1756432535999,38.12,213.9,213.88,0.67]
[1756432536198,30.26353459,213.95,213.88,9.60905357]
[1756432536403,45.507052,213.94,213.89,0.67]
[1756432536704,4.26353459,213.93,213.89,0.67]
[1756432537992,4.26353459,213.9,213.83,111.24785773]
[1756432538206,4.26353459,213.9,213.84,4.26353459]
[1756432538692,38.12,213.91,213.85,0.67]
[1756432538888,42.38353459,213.91,213.85,4.93353459]
[1756432539207,4.26353459,213.9,213.86,0.67]
[1756432540105,4.26353459,213.9,213.87,4.67573759]
[1756432540305,42.38353459,213.91,213.88,0.67]
[1756432540506,34.16174497,213.98,213.88,4.93353459]
[1756432540507,38.12,213.94,213.88,4.93353459]
[1756432540808,4.26353459,213.89,213.86,0.67]
[1756432540993,4.26353459,213.88,213.87,0.67]
[1756432541196,38.12,213.9,213.87,0.67]
[1756432541197,4.26353459,213.89,213.87,0.67]
[1756432541507,42.38353459,213.9,213.87,0.67]
[1756432541804,42.38353459,213.9,213.88,0.67]
[1756432541994,42.38353459,213.9,213.89,0.67]
[1756432543088,42.38353459,213.9,213.85,0.03]
[1756432543406,42.38353459,213.9,213.87,0.67]
[1756432543713,42.38353459,213.9,213.88,0.67]
[1756432543912,4.26353459,213.89,213.88,0.67]
[1756432545007,4.26353459,213.9,213.88,0.67]
[1756432545199,4.26353459,213.89,213.88,0.67]
[1756432545589,4.26353459,213.89,213.85,0.7]
[1756432545792,4.26353459,213.88,213.85,0.7]
[1756432546107,4.26353459,213.88,213.86,0.67]
[1756432546411,4.26353459,213.87,213.86,0.67]
[1756432547614,4.26353459,213.88,213.86,0.67]
[1756432548308,4.26353459,213.88,213.85,0.03]
[1756432548505,4.26353459,213.89,213.86,0.67]
[1756432548707,4.26353459,213.89,213.85,4.70610149]
[1756432548895,4.26353459,213.89,213.86,0.67]
[1756432549090,4.26353459,213.89,213.85,4.70610149]
[1756432549304,4.26353459,213.89,213.86,0.67]
[1756432549610,4.26353459,213.89,213.87,0.67]
[1756432551017,4.26353459,213.89,213.85,0.03]
[1756432551018,42.38353459,213.9,213.85,0.03]
[1756432551207,38.12,213.9,213.88,0.67]
[1756432552223,42.38353459,213.9,213.88,0.67]
[1756432554125,32.795528,213.98,213.89,0.67]
[1756432554420,4.26353459,213.94,213.89,0.67]
[1756432554593,38.1,213.93,213.9,0.67]
[1756432554800,42.36353459,213.93,213.88,4.67548983]
[1756432555106,42.36353459,213.93,213.91,0.67]
[1756432555902,38.1,213.93,213.91,4.67477236]
[1756432556099,4.26353459,213.95,213.92,0.67]
[1756432556318,38.1,213.94,213.92,0.67]
[1756432556610,4.26353459,213.95,213.92,0.67]
[1756432556818,42.34353459,213.94,213.92,0.67]
[1756432557020,38.08,213.94,213.92,0.67]
[1756432557590,38.08,213.94,213.93,0.67]
[1756432558021,42.34353459,213.94,213.87,0.28432314]
[1756432558195,42.34353459,213.94,213.91,0.67]
[1756432558508,42.34353459,213.94,213.92,0.67]
[1756432558903,38.08,213.94,213.92,0.67]
[1756432559093,4.26353459,213.95,213.92,0.67]
[1756432559321,38.08,213.94,213.92,0.67]
[1756432560407,4.26353459,213.95,213.92,0.67]
[1756432560607,38.08,213.95,213.92,5.34459355]
[1756432560823,4.26353459,213.98,213.93,0.71]
[1756432561011,38.08,213.96,213.94,0.71]
[1756432561721,4.26353459,213.97,213.91,4.26353459]
[1756432562025,38.08,213.96,213.95,0.71]
[1756432562225,38.08,213.96,213.93,0.71]
[1756432562526,38.08,213.96,213.94,0.71]
[1756432563599,26.0,213.93,213.86,11.718348]
[1756432563818,4.26353459,213.88,213.86,4.70593524]
[1756432564023,38.06,213.89,213.87,0.71]
[1756432564226,38.06,213.9,213.87,0.71]
[1756432564524,38.06,213.91,213.87,0.71]
[1756432565137,38.06,213.91,213.88,0.71]
[1756432565309,4.26353459,213.92,213.89,0.71]
[1756432565508,38.06,213.92,213.89,0.71]
[1756432565708,38.06,213.92,213.9,0.71]
[1756432566019,4.26353459,213.94,213.91,0.71]
[1756432566331,38.06,213.93,213.91,0.71]
[1756432567315,3.14722156,213.92,213.91,0.71]
[1756432568504,3.14722156,213.92,213.91,5.38486326]
[1756432568730,38.06,213.94,213.91,5.38486326]
[1756432568923,38.06,213.95,213.92,0.71]
[1756432569233,3.1480463,213.94,213.92,0.71]
[1756432569730,3.1480463,213.94,213.9,0.71]
[1756432569931,3.1480463,213.94,213.88,4.26353459]
[1756432570113,3.1480463,213.94,213.89,5.38529861]
[1756432570309,3.1480463,213.94,213.9,0.71]
[1756432570515,3.1480463,213.94,213.91,0.71]
[1756432570824,41.2080463,213.94,213.92,0.71]
[1756432571127,3.1480463,213.93,213.92,0.71]
[1756432571350,3.1480463,213.93,213.92,5.38464472]
[1756432571531,4.26353459,214.0,213.93,0.71]
[1756432571731,38.04,213.99,213.93,4.97353459]
[1756432572033,3.14941726,213.98,213.94,4.97353459]
[1756432572213,3.14941726,213.98,213.95,0.71]
[1756432574338,0.06,214.05,214.04,4.26353459]
[1756432574635,0.06,214.05,214.04,8.93555851]
[1756432575025,0.06,214.05,214.04,5.38202392]
[1756432575615,0.06,214.05,214.04,0.71]
[1756432576216,0.06,214.05,214.04,5.38202392]
[1756432576546,0.06,214.05,214.04,9.92988165]
[1756432579418,0.06,214.05,214.04,23.92988165]
[1756432579733,0.06,214.05,214.02,14.047903]
[1756432579933,4.26353459,214.03,213.98,4.67332785]
[1756432580238,4.32353459,214.05,213.99,9.23706959]
[1756432580836,4.32353459,214.05,213.99,13.9100267]
[1756432581430,4.26353459,214.04,213.99,9.64649211]
[1756432581624,4.26353459,214.04,214.0,0.71]
[1756432581824,4.26353459,214.03,213.99,4.263535]
[1756432582030,4.26353459,214.02,213.99,4.263535]
[1756432582242,4.26353459,214.0,213.99,4.263535]
[1756432582539,4.26353459,214.0,213.95,0.28432314]
[1756432582748,4.26353459,214.0,213.96,0.71]
[1756432584043,4.26353459,214.0,213.94,8.96770324]
[1756432584251,4.26353459,214.0,213.94,23.72955524]
[1756432584548,4.26353459,214.0,213.94,9.67770324]
[1756432584923,26.06,214.05,213.97,4.26353459]
[1756432584924,4.26353459,214.03,213.97,4.26353459]
[1756432585134,42.26353459,214.03,213.98,0.71]
[1756432585418,38.0,214.03,213.99,0.71]
[1756432585641,42.26353459,214.03,213.99,0.71]
[1756432589856,46.99584473,214.03,213.97,8.93730459]
[1756432590031,4.26353459,214.02,213.96,4.97353459]
[1756432590224,4.26353459,214.02,213.96,23.69905245]
[1756432590420,38.0,214.03,213.97,4.95353459]
[1756432590733,38.0,214.03,213.98,0.69]
[1756432590917,38.0,214.03,213.99,4.95353459]
[1756432591124,37.98,214.04,214.0,0.69]
[1756432591324,37.98,214.04,214.01,0.69]
[1756432591624,4.32353459,214.05,213.97,14.051193]
[1756432591625,0.06,214.05,214.02,0.69]
[1756432591943,0.06,214.05,214.03,0.69]
[1756432592751,0.06,214.05,214.03,4.26353459]
[1756432592946,0.06,214.05,214.04,4.95353459]
[1756432593128,0.06,214.05,214.04,19.00078059]
[1756432593326,0.06,214.05,214.04,4.95353459]
[1756432594249,0.06,214.05,214.04,9.62555851]
[1756432594435,0.06,214.05,214.04,23.67280351]
[1756432594637,0.06,214.05,214.04,23.95712665]
[1756432595349,0.06,214.05,214.04,14.047245]
[1756432595646,0.06,214.05,214.02,26.0]
[1756432596133,0.06,214.05,214.03,0.69]
[1756432596333,0.06,214.05,214.03,4.953535]
[1756432596850,0.06,214.05,214.03,9.62566526]
[1756432597954,0.06,214.05,214.04,0.69]
[1756432598948,0.06,214.05,214.04,5.36202392]
[1756432601550,0.06,214.05,214.04,9.62555851]
[1756432602449,4.32353459,214.05,214.01,14.077903]
[1756432602648,4.26353459,214.02,214.01,14.077903]
[1756432602853,4.26353459,214.02,214.01,0.03]
[1756432603038,4.26353459,214.04,214.01,0.72]
[1756432603244,0.06,214.05,214.02,4.95353459]
[1756432603553,0.06,214.05,214.03,9.62570833]
[1756432603860,0.06,214.05,214.04,4.26353459]
[1756432604162,0.06,214.05,214.04,4.95353459]
[1756432604653,0.06,214.05,214.04,5.23785773]
[1756432605140,0.06,214.05,214.04,18.83345174]
[1756432605346,0.06,214.05,214.04,19.28378773]
[1756432605856,0.06,214.05,214.04,23.95581165]
[1756432607059,0.06,214.05,214.04,37.55140566]
[1756432608263,0.06,214.05,214.04,118.25140566]
[1756432608639,0.06,214.08,214.07,26.28432314]
[1756432608838,0.06,214.08,214.07,30.54785773]
[1756432609062,0.06,214.08,214.07,31.23785773]
[1756432609539,0.06,214.08,214.07,30.95353459]
[1756432610357,0.06,214.08,214.07,31.23785773]
[1756432610749,0.06,214.08,214.07,49.50482091]
[1756432611347,0.06,214.08,214.07,63.50482091]
[1756432611864,0.06,214.08,214.07,101.42482091]
[1756432612245,0.06,214.08,214.07,115.46812091]
[1756432613662,0.06,214.08,214.07,196.16812091]
[1756432614561,0.06,214.08,214.07,158.24812091]
[1756432614766,0.06,214.08,214.07,181.45812091]
[1756432614957,0.06,214.08,214.07,125.41466917]
[1756432615161,0.06,214.08,214.07,126.10466917]
[1756432615568,0.06,214.08,214.07,130.36820376]
[1756432615879,0.06,214.08,214.07,182.14812091]
[1756432617866,0.06,214.08,214.07,196.14812091]
[1756432618769,0.06,214.1,214.09,4.54785773]
[1756432618981,0.06,214.1,214.09,0.28432314]
[1756432619158,0.06,214.1,214.09,43.11785773]
[1756432619558,0.06,214.1,214.09,58.58580374]
[1756432620674,0.06,214.1,214.09,63.25673652]
[1756432621677,0.06,214.1,214.09,143.95673652]
[1756432621885,0.06,214.1,214.09,157.95673652]
[1756432622088,1e-08,214.11,214.09,81.52027111]
[1756432622386,1e-08,214.11,214.1,23.09698633]
[1756432622594,1e-08,214.11,214.1,103.79698633]
[1756432622973,1e-08,214.11,214.1,137.41345174]
[1756432623563,1e-08,214.11,214.1,123.12785773]
[1756432623977,1e-08,214.11,214.1,128.48857234]
[1756432624599,1e-08,214.11,214.1,142.08416635]
[1756432625481,1e-08,214.11,214.1,156.08416635]
[1756432627487,1e-08,214.11,214.1,99.65503775]
[1756432627680,1e-08,214.11,214.1,127.4942492]
[1756432627990,1e-08,214.11,214.1,123.23071461]
[1756432628382,1e-08,214.11,214.1,127.4942492]
[1756432628582,1e-08,214.11,214.1,128.1842492]
[1756432628777,1e-08,214.11,214.1,127.4942492]
[1756432628976,1e-08,214.11,214.1,127.77857234]
[1756432630082,1e-08,214.11,214.1,132.10210734]
[1756432631168,1e-08,214.11,214.1,146.38770135]
[1756432632096,1e-08,214.11,214.1,142.06416635]
[1756432632993,1e-08,214.11,214.1,142.04416635]
[1756432634276,1e-08,214.11,214.1,94.57991715]
[1756432634614,1e-08,214.11,214.1,80.7]
[1756432634769,1e-08,214.11,214.1,118.54]
[1756432635194,1e-08,214.11,214.1,123.21071461]
[1756432636295,1e-08,214.11,214.1,118.54]
[1756432636590,1e-08,214.11,214.1,80.7]
[1756432637398,1e-08,214.11,214.1,85.37071461]
[1756432638000,1e-08,214.11,214.1,4.67071461]
[1756432638795,1e-08,214.11,214.1,9.90857234]
[1756432640181,1e-08,214.11,214.1,47.72857234]
[1756432640414,1e-08,214.11,214.09,0.03]
[1756432641115,4.32353459,214.1,214.09,0.03]
[1756432641282,7.81341321,214.1,214.09,0.03]
[1756432642392,7.75341321,214.1,214.09,0.03]
[1756432642911,3.48987862,214.1,214.09,0.03]
[1756432643123,1e-08,214.11,214.09,0.03]
[1756432643285,1e-08,214.11,214.09,4.98353459]
[1756432643611,1e-08,214.11,214.09,0.03]
[1756432644182,1e-08,214.11,214.1,0.69]
[1756432644406,1e-08,214.11,214.1,4.95353459]
[1756432646394,1e-08,214.11,214.1,9.6242492]
[1756432647723,1e-08,214.11,214.09,80.73]
[1756432648218,3.49422505,214.11,214.09,80.73]
[1756432650403,3.49422504,214.1,214.09,80.73]
[1756432650905,3.49695629,214.11,214.09,80.73]
[1756432651110,3.49695628,214.1,214.09,80.73]
[1756432651312,3.49695629,214.11,214.09,80.73]
[1756432652201,3.49695628,214.1,214.09,80.73]
[1756432652397,1e-08,214.11,214.09,80.73]
[1756432652938,1e-08,214.11,214.1,4.96353459]
[1756432653826,1e-08,214.11,214.1,43.02785773]
[1756432654005,1e-08,214.11,214.1,56.62345174]
[1756432654207,0.06,214.13,214.12,13.87991715]
[1756432654395,0.06,214.13,214.12,55.92345174]
[1756432654598,0.06,214.13,214.12,56.62345174]
[1756432655621,0.06,214.13,214.12,61.29373008]
[1756432656320,0.06,214.13,214.12,49.51373008]
[1756432656499,0.06,214.13,214.12,73.69813607]
[1756432656696,0.06,214.13,214.12,87.29373008]
[1756432656900,0.06,214.13,214.12,61.29373008]
[1756432658997,0.06,214.14,214.12,61.29373008]
[1756432658998,0.06,214.14,214.13,39.59559401]
[1756432659204,0.06,214.14,214.13,44.5591286]
[1756432659409,0.06,214.14,214.13,58.5591286]
[1756432659919,0.06,214.16,214.15,39.59559401]
[1756432660109,0.06,214.16,214.15,77.63991715]
[1756432660428,0.06,214.25,214.17,0.28432314]
[1756432660635,3.49179177,214.24,214.21,4.26353459]
[1756432661108,0.06,214.23,214.17,4.26353459]
[1756432661318,4.32353459,214.22,214.16,68.02353459]
[1756432661614,4.7274906,214.25,214.15,2.571476]
[1756432661615,4.26353459,214.19,214.15,1.871476]
[1756432661806,7.75489458,214.18,214.14,37.76]
[1756432662129,3.49135999,214.17,214.13,42.43006024]
[1756432662305,0.06,214.16,214.12,26.0]
[1756432662624,7.81596194,214.15,214.09,42.75353459]
[1756432662801,3.49242735,214.14,214.1,4.26353459]
[1756432663000,4.26353459,214.16,214.1,4.96353459]
[1756432663308,3.49234761,214.15,214.1,4.96353459]
[1756432663618,3.49234761,214.15,214.1,9.6342492]
[1756432664295,3.49234761,214.15,214.1,4.26353459]
[1756432664501,4.26353459,214.11,214.09,0.03]
[1756432664814,3.49305478,214.1,214.09,0.03]
[1756432666403,4.26353459,214.12,214.09,0.03]
[1756432666404,3.49305478,214.11,214.09,0.03]
[1756432666610,3.49305478,214.1,214.09,0.03]
[1756432666810,7.75658937,214.11,214.09,0.03]
[1756432667033,3.49305478,214.1,214.09,0.03]
[1756432667238,7.75658937,214.1,214.09,0.03]
[1756432667624,3.49305478,214.1,214.09,0.03]
[1756432668912,3.49305478,214.1,214.09,4.29353459]